bitfinex/quotes_SOLUSD_20250907
["timestamp","ask_amount","ask_price","bid_price","bid_amount"]
[1757208277329,0.03,201.93,201.89,34.62365234]
[1757208277499,0.03,201.93,201.9,3.67046001]
[1757208277820,2.54558975,201.91,201.87,38.06]
[1757208278013,0.7,201.93,201.88,4.38896634]
[1757208278198,0.7,201.93,201.89,4.38896634]
[1757208278516,0.7,201.93,201.9,3.66896634]
[1757208278719,5.01180299,201.92,201.91,3.66896634]
[1757208279113,7.55739274,201.92,201.91,3.66896634]
[1757208279521,2.54558975,201.92,201.91,4.38896634]
[1757208283526,134.84558975,201.92,201.91,4.38896634]
[1757208285827,134.87558975,201.92,201.91,4.38896634]
[1757208301049,132.33,201.92,201.91,4.38896634]
[1757208301938,134.87558975,201.92,201.91,4.38896634]
[1757208302140,134.87558975,201.92,201.91,42.42896634]
[1757208302548,134.87558975,201.92,201.91,41.70896634]
[1757208303351,134.87558975,201.92,201.91,42.37896634]
[1757208304076,134.87558975,201.92,201.91,42.49896634]
[1757208304349,132.33,201.92,201.91,3.78896634]
[1757208304549,134.87558975,201.92,201.91,3.78896634]
[1757208304746,134.87558975,201.92,201.91,4.45896634]
[1757208306357,140.48804616,201.92,201.91,3.78896634]
[1757208310447,155.35830316,201.92,201.91,3.78896634]
[1757208313856,206.99389717,201.92,201.91,0.12]
[1757208314096,13.59559401,201.91,201.88,0.12]
[1757208314248,2.54558975,201.89,201.88,0.12]
[1757208314438,2.54558975,201.89,201.88,3.78440491]
[1757208314639,18.07879567,201.89,201.88,3.78440491]
[1757208315460,18.07879567,201.89,201.88,0.12]
[1757208315669,18.07879567,201.89,201.88,3.78500366]
[1757208316140,36.62758201,201.89,201.88,3.78500366]
[1757208319268,36.62758201,201.89,201.88,3.78662801]
[1757208319475,38.05934284,201.89,201.88,3.78662801]
[1757208323188,37.39934284,201.89,201.88,3.78662801]
[1757208323478,3.97735058,201.89,201.88,4.46662801]
[1757208323685,8.76934193,201.91,201.88,4.46662801]
[1757208323858,3.97735058,201.89,201.88,0.12]
[1757208324058,3.97735058,201.89,201.88,3.784533]
[1757208324451,3.97735058,201.89,201.88,4.464533]
[1757208325384,8.93054291,201.89,201.88,4.464533]
[1757208329580,8.93054291,201.89,201.88,3.784533]
[1757208329769,9.63054291,201.89,201.88,3.784533]
[1757208329967,8.93054291,201.89,201.88,3.784533]
[1757208341469,8.93054291,201.89,201.88,4.464533]
[1757208342090,8.93054291,201.89,201.88,4.46554887]
[1757208345384,8.93054291,201.89,201.88,3.78554887]
[1757208355394,23.21613692,201.89,201.88,3.78554887]
[1757208356098,23.21613692,201.89,201.88,0.12]
[1757208359788,13.59559401,201.88,201.86,0.12]
[1757208359995,149.87294459,201.87,201.86,0.12]
[1757208360191,149.87294459,201.87,201.86,3.79531725]
[1757208362797,154.82662765,201.87,201.86,4.48531725]
[1757208363505,154.82662765,201.87,201.86,3.79531725]
[1757208363704,22.52662765,201.87,201.86,3.79531725]
[1757208364406,4.95319233,201.89,201.86,4.48531725]
[1757208364611,3.97735058,201.87,201.86,0.12]
[1757208364901,3.97735058,201.87,201.86,3.79581447]
[1757208364902,8.93103364,201.87,201.86,3.79581447]
[1757208365100,3.97735058,201.87,201.86,4.48581447]
[1757208366390,3.97735058,201.87,201.86,4.48534559]
[1757208373108,0.03,201.88,201.86,4.48534559]
[1757208373310,0.03,201.88,201.87,4.36534559]
[1757208373502,4.00735058,201.88,201.87,4.36495799]
[1757208375716,4.00735058,201.88,201.87,4.36376265]
[1757208381424,0.03,201.88,201.87,4.36376265]
[1757208382617,2.57430083,201.88,201.87,4.36376265]
[1757208386715,0.03,201.88,201.87,4.36376265]
[1757208387508,0.03,201.88,201.87,9.31744571]
[1757208387718,0.03,201.88,201.87,13.68120836]
[1757208388906,0.03,201.88,201.87,13.80120836]
[1757208395442,0.03,201.88,201.87,13.79227512]
[1757208399141,0.03,201.88,201.87,27.38786913]
[1757208401227,0.03,201.88,201.87,65.38786913]
[1757208402641,0.03,201.88,201.87,65.38310243]
[1757208402827,0.03,201.88,201.87,13.78750842]
[1757208403030,0.03,201.88,201.87,51.78750842]
[1757208409452,0.03,201.88,201.87,13.78750842]
[1757208409752,0.03,201.88,201.87,47.41744571]
[1757208409951,0.03,201.88,201.87,51.07924421]
[1757208410243,0.03,201.88,201.87,46.12556115]
[1757208412549,0.03,201.88,201.87,51.77924421]
[1757208423076,0.03,201.88,201.87,13.79924421]
[1757208423369,0.03,201.88,201.87,51.77924421]
[1757208428365,0.00584207,201.88,201.87,51.77924421]
[1757208430188,0.00584207,201.88,201.87,51.78872473]
[1757208432261,0.03,201.91,201.87,51.78872473]
[1757208432474,0.03,201.91,201.89,4.95319233]
[1757208432775,0.03,201.91,201.9,41.65127902]
[1757208433080,0.03,201.91,201.9,43.63348869]
[1757208435464,0.03,201.91,201.9,48.58643569]
[1757208436582,0.03,201.91,201.9,49.28643569]
[1757208437473,0.03,201.91,201.9,49.28810053]
[1757208437671,0.03,201.91,201.9,48.58810053]
[1757208437978,0.03,201.91,201.9,49.28810053]
[1757208438365,0.01153014,201.92,201.9,49.28810053]
[1757208438567,0.01153014,201.92,201.91,4.37294386]
[1757208439078,0.01153014,201.92,201.91,6.35485889]
[1757208439882,0.01153014,201.92,201.91,11.30756058]
[1757208448592,0.03,201.93,201.91,11.30756058]
[1757208448785,0.03,201.93,201.92,67.63294386]
[1757208449394,0.03,201.93,201.92,76.24060261]
[1757208449899,0.69,202.01,201.92,76.24060261]
[1757208449900,0.69,202.0,201.95,26.0]
[1757208450093,0.69,202.01,201.96,41.63294386]
[1757208450301,0.69,202.01,201.96,42.33294386]
[1757208450484,3.97153446,202.04,201.96,46.30447832]
[1757208450684,0.69,202.03,201.96,46.30447832]
[1757208450887,0.69,202.03,201.96,54.47033451]
[1757208451206,4.66153446,202.05,201.96,59.42181004]
[1757208451503,4.66153446,202.06,201.96,73.01740405]
[1757208451706,0.69,202.05,201.96,73.01740405]
[1757208451908,0.69,202.05,201.96,73.5125516]
[1757208452604,0.2,202.07,201.96,73.5125516]
[1757208452899,0.89,202.07,202.0,26.0]
[1757208453098,0.2,202.07,202.01,41.63294386]
[1757208453306,0.89,202.07,202.04,26.0]
[1757208453494,0.69,202.06,202.05,41.63294386]
[1757208453895,0.2,202.07,202.05,41.63294386]
[1757208454082,0.2,202.07,202.06,3.67294386]
[1757208454898,0.2,202.07,202.06,4.17294386]
[1757208455099,0.89,202.07,202.06,4.17294386]
[1757208456313,4.86153446,202.07,202.06,42.11294386]
[1757208456805,4.86153446,202.07,202.06,41.61294386]
[1757208458504,0.89,202.07,202.06,41.61294386]
[1757208458711,4.86153446,202.07,202.06,41.61294386]
[1757208462715,0.2,202.07,202.06,41.58769001]
[1757208463306,4.17153446,202.07,202.06,41.58769001]
[1757208463601,4.17153446,202.07,202.06,3.64769001]
[1757208463804,4.17153446,202.07,202.06,41.58769001]
[1757208464018,0.2,202.07,202.06,41.58769001]
[1757208465411,4.17153446,202.07,202.06,41.58769001]
[1757208465612,4.17153446,202.07,202.06,3.64769001]
[1757208465815,4.86153446,202.07,202.06,3.64769001]
[1757208466000,4.86153446,202.07,202.06,41.58769001]
[1757208466723,0.89,202.07,202.06,41.58769001]
[1757208466922,4.86153446,202.07,202.06,41.58769001]
[1757208467717,0.89,202.07,202.06,41.58769001]
[1757208467921,9.12031458,202.07,202.06,3.64769001]
[1757208468101,9.81031458,202.07,202.06,37.94]
[1757208468614,9.81031458,202.07,202.02,4.84607162]
[1757208468915,0.69,202.06,202.03,41.66776301]
[1757208469113,0.69,202.06,202.04,3.64776301]
[1757208469299,0.69,202.06,202.05,41.66776301]
[1757208469696,0.69,202.06,202.05,3.64776301]
[1757208469903,0.69,202.06,202.04,38.02]
[1757208470099,0.7,202.05,202.04,38.02]
[1757208470303,4.67153446,202.05,202.04,41.66902342]
[1757208470720,9.62080444,202.05,202.04,41.66902342]
[1757208472124,8.92080444,202.05,202.04,41.66902342]
[1757208472701,0.2,202.07,202.06,39.59559401]
[1757208472917,0.2,202.13,202.1,26.0]
[1757208473112,0.2,202.13,202.11,42.40902342]
[1757208473321,0.2,202.13,202.12,3.64902342]
[1757208473619,0.2,202.13,202.12,9.24506859]
[1757208474703,20.2,202.28,202.12,27.7882185]
[1757208474904,3.97153446,202.27,202.16,39.59559401]
[1757208475208,0.2,202.28,202.2,26.0]
[1757208475415,4.17153446,202.28,202.21,42.48902342]
[1757208475608,3.97153446,202.27,202.22,4.29902342]
[1757208475814,3.97153446,202.27,202.23,43.13902342]
[1757208476007,3.97153446,202.27,202.24,3.64902342]
[1757208476214,0.71,202.26,202.25,42.48902342]
[1757208476411,3.97153446,202.26,202.25,42.48902342]
[1757208477716,3.97153446,202.26,202.25,3.64902342]
[1757208478027,4.17153446,202.28,202.25,4.29902342]
[1757208478324,4.17153446,202.28,202.26,43.11902342]
[1757208478622,0.2,202.28,202.26,38.82]
[1757208478826,4.17153446,202.28,202.26,38.82]
[1757208479424,3.97153446,202.27,202.26,38.82]
[1757208479614,4.17153446,202.28,202.26,42.43498614]
[1757208479814,4.17153446,202.28,202.26,38.82]
[1757208482819,9.62542134,202.27,202.26,42.43286497]
[1757208483028,5.65388688,202.27,202.26,42.43286497]
[1757208483216,9.62542134,202.27,202.26,42.43286497]
[1757208483410,8.91542134,202.27,202.26,42.43286497]
[1757208483611,4.94388688,202.27,202.26,42.43286497]
[1757208483842,9.62542134,202.27,202.26,42.43286497]
[1757208484127,0.71,202.27,202.12,20.0]
[1757208484318,0.71,202.27,202.14,13.59559401]
[1757208484518,3.97153446,202.24,202.18,14.84303491]
[1757208484831,3.97153446,202.24,202.19,43.14097188]
[1757208485128,4.94395913,202.27,202.19,43.14097188]
[1757208485129,3.97153446,202.22,202.2,4.26097188]
[1757208485334,3.97153446,202.22,202.21,42.51097188]
[1757208486535,5.14377408,202.28,202.21,43.16097188]
[1757208486713,3.97153446,202.24,202.22,4.25808495]
[1757208487027,3.97153446,202.24,202.23,43.15808495]
[1757208487225,3.97153446,202.24,202.23,42.50808495]
[1757208488123,4.94451477,202.25,202.23,42.50808495]
[1757208488322,4.94451477,202.25,202.23,38.9]
[1757208488523,3.97153446,202.24,202.23,38.9]
[1757208488721,3.97153446,202.24,202.23,42.50792122]
[1757208490129,8.91615471,202.24,202.23,42.50792122]
[1757208490533,9.62615471,202.24,202.23,42.50792122]
[1757208491133,9.62615471,202.24,202.23,38.9]
[1757208491509,9.62615471,202.24,202.18,26.0]
[1757208491706,3.97153446,202.2,202.19,42.44953411]
[1757208491935,3.97153446,202.2,202.19,43.09953411]
[1757208492304,3.97153446,202.2,202.19,42.44953411]
[1757208492506,3.97153446,202.2,202.19,43.09953411]
[1757208494026,3.97153446,202.2,202.19,42.44953411]
[1757208494434,8.91696459,202.21,202.19,42.44953411]
[1757208494611,8.91696459,202.21,202.2,3.60953411]
[1757208495827,9.62696459,202.21,202.2,3.60953411]
[1757208496025,5.65543013,202.21,202.2,3.60953411]
[1757208496226,9.62696459,202.21,202.2,3.60953411]
[1757208496631,9.62696459,202.21,202.17,38.8]
[1757208496632,9.62696459,202.21,202.18,3.60953411]
[1757208496935,5.65543013,202.21,202.19,3.60953411]
[1757208497127,5.65543013,202.21,202.17,38.8]
[1757208497128,5.65543013,202.21,202.2,3.60953411]
[1757208497640,5.65543013,202.21,202.18,3.60953411]
[1757208497827,5.65543013,202.21,202.19,3.60953411]
[1757208498030,5.65543013,202.21,202.2,3.60953411]
[1757208498232,9.62696459,202.21,202.2,3.60953411]
[1757208500745,5.62499473,202.23,202.2,3.60953411]
[1757208501046,3.97153446,202.21,202.18,0.69]
[1757208501244,3.97153446,202.21,202.19,3.6170905]
[1757208501433,0.68,202.22,202.2,3.6170905]
[1757208501640,0.68,202.22,202.18,0.69]
[1757208501936,0.68,202.22,202.19,3.6179593]
[1757208502137,0.68,202.21,202.2,3.6179593]
[1757208502737,9.5968883,202.21,202.2,3.6179593]
[1757208503656,8.1621861,202.21,202.2,3.6179593]
[1757208506154,8.1621861,202.21,202.15,0.69]
[1757208506358,5.62535384,202.21,202.16,3.62377478]
[1757208506528,0.68,202.2,202.17,3.62377478]
[1757208506848,0.68,202.19,202.18,3.6244528]
[1757208507150,4.94584301,202.19,202.18,3.6244528]
[1757208507533,7.48267527,202.19,202.18,3.6244528]
[1757208508543,7.48267527,202.19,202.17,3.6244528]
[1757208508731,4.94584301,202.19,202.18,3.6244528]
[1757208509850,0.03,202.21,202.18,47.94053368]
[1757208510040,2.56683226,202.21,202.19,4.3144528]
[1757208510243,0.03,202.21,202.2,4.3144528]
[1757208511540,2.56683226,202.21,202.2,3.6244528]
[1757208513446,3.24683226,202.21,202.2,3.6244528]
[1757208514168,8.1921861,202.21,202.2,3.6244528]
[1757208514336,7.5121861,202.21,202.2,3.6244528]
[1757208519053,2.56683226,202.21,202.2,3.6244528]
[1757208522155,8.1921861,202.21,202.2,3.6244528]
[1757208526161,7.5121861,202.21,202.2,3.6244528]
[1757208527060,4.97535384,202.21,202.2,3.6244528]
[1757208527268,2.56683226,202.21,202.2,3.6244528]
[1757208528566,2.56683226,202.21,202.2,4.3144528]
[1757208529063,2.56683226,202.21,202.2,3.6244528]
[1757208532452,0.03,202.21,202.2,4.3244528]
[1757208532647,2.56683226,202.21,202.2,4.3244528]
[1757208533843,2.56683226,202.21,202.2,3.6244528]
[1757208534359,7.5121861,202.21,202.2,3.6244528]
[1757208534754,8.2221861,202.21,202.2,3.6244528]
[1757208534944,7.5121861,202.21,202.2,3.6244528]
[1757208536661,0.03,202.21,202.2,3.6244528]
[1757208536968,2.56683226,202.21,202.2,3.6244528]
[1757208537662,7.5121861,202.21,202.2,3.6244528]
[1757208539959,7.5121861,202.21,202.2,4.3244528]
[1757208539960,0.03,202.21,202.2,4.3244528]
[1757208541168,2.56683226,202.21,202.2,4.3244528]
[1757208543083,2.56683226,202.21,202.2,0.7]
[1757208543257,2.56683226,202.21,202.2,4.3603738]
[1757208545747,0.03,202.21,202.2,4.3603738]
[1757208546858,0.03,202.21,202.2,30.3603738]
[1757208547372,0.03,202.24,202.2,35.30597221]
[1757208547551,0.03,202.24,202.21,4.3603738]
[1757208547754,0.03,202.24,202.22,42.2403738]
[1757208547967,0.03,202.24,202.23,3.6603738]
[1757208548152,0.03,202.24,202.23,4.3603738]
[1757208557380,0.03,202.24,202.23,9.30523855]
[1757208563479,0.03,202.24,202.23,47.74523855]
[1757208564287,0.03,202.24,202.23,9.30523855]
[1757208564583,0.03,202.24,202.23,47.78523855]
[1757208567988,0.03,202.24,202.23,51.77522876]
[1757208570393,0.03,202.24,202.23,26.89082277]
[1757208570686,0.03,202.26,202.25,26.0]
[1757208570873,0.03,202.26,202.25,73.04474957]
[1757208571073,0.03,202.26,202.25,73.73474957]
[1757208571484,0.03,202.26,202.25,75.7131357]
[1757208578895,0.03,202.26,202.25,75.6531357]
[1757208579091,0.03,202.26,202.25,74.9631357]
[1757208579301,0.7,202.26,202.25,31.63875993]
[1757208579597,0.7,202.26,202.25,68.0403738]
[1757208579977,0.7,202.26,202.25,29.6603738]
[1757208580176,0.7,202.26,202.25,68.0403738]
[1757208580391,0.7,202.26,202.25,29.6603738]
[1757208580590,0.7,202.26,202.25,68.0403738]
[1757208581185,9.60412152,202.26,202.25,3.6603738]
[1757208581390,9.60412152,202.26,202.25,42.0403738]
[1757208581816,9.60412152,202.26,202.25,3.6603738]
[1757208583401,0.7,202.26,202.25,3.6603738]
[1757208583580,4.65999021,202.26,202.25,3.6603738]
[1757208585095,0.03,202.26,202.25,3.6603738]
[1757208585306,0.03,202.26,202.25,4.3503738]
[1757208585810,0.03,202.26,202.25,9.29474957]
[1757208588516,0.03,202.26,202.25,4.3503738]
[1757208589305,0.03,202.26,202.25,9.29474957]
[1757208589887,0.03,202.26,202.25,4.3503738]
[1757208590506,0.03,202.26,202.25,5.63885778]
[1757208591008,0.03,202.26,202.25,6.35885778]
[1757208593709,0.03,202.26,202.25,5.63885778]
[1757208593904,0.75,202.26,202.25,43.97885778]
[1757208594411,0.03,202.27,202.25,47.68474957]
[1757208594605,0.03,202.27,202.26,3.6603738]
[1757208595498,0.03,202.27,202.26,5.63885779]
[1757208598302,0.03,202.27,202.26,6.35885779]
[1757208599095,0.03,202.27,202.26,5.63885779]
[1757208599417,0.03,202.27,202.26,6.35885779]
[1757208599916,0.03,202.27,202.26,5.63885779]
[1757208600211,0.75,202.27,202.26,5.63885779]
[1757208600411,0.03,202.27,202.26,42.8003738]
[1757208600617,0.03,202.27,202.26,49.71548429]
[1757208605616,0.03,202.27,202.26,63.80549143]
[1757208609921,0.03,202.3,202.26,76.16581972]
[1757208610102,0.03,202.3,202.29,26.0]
[1757208610308,0.03,202.3,202.29,29.652869]
[1757208610511,0.75,202.3,202.29,31.63096163]
[1757208610737,0.75,202.3,202.29,70.23096163]
[1757208611029,0.75,202.3,202.29,44.23096163]
[1757208611325,4.70999021,202.3,202.29,42.272869]
[1757208611513,0.75,202.3,202.29,42.272869]
[1757208611712,4.70999021,202.3,202.29,42.272869]
[1757208614334,4.70999021,202.3,202.29,3.652869]
[1757208614519,4.70999021,202.3,202.29,42.252869]
[1757208615035,4.70999021,202.3,202.29,3.652869]
[1757208615507,9.65314394,202.3,202.29,3.652869]
[1757208617727,5.69315373,202.3,202.29,3.652869]
[1757208617911,9.65314394,202.3,202.29,3.652869]
[1757208619035,0.03,202.3,202.29,3.652869]
[1757208619732,0.03,202.3,202.29,13.30601294]
[1757208620944,4.67999021,202.3,202.29,42.272869]
[1757208621810,0.03,202.3,202.29,42.272869]
[1757208622025,0.03,202.3,202.29,42.952869]
[1757208622610,0.03,202.3,202.29,47.89626709]
[1757208623236,0.03,202.3,202.29,49.87435972]
[1757208623644,0.03,202.3,202.29,44.93096163]
[1757208624728,0.03,202.3,202.29,44.25096163]
[1757208624919,0.03,202.3,202.29,42.272869]
[1757208627232,0.72,202.3,202.29,42.272869]
[1757208628254,3.25351839,202.3,202.29,3.652869]
[1757208628457,3.25351839,202.3,202.29,42.25345199]
[1757208629754,3.25351839,202.3,202.29,3.65345199]
[1757208629940,3.25351839,202.3,202.29,42.25345199]
[1757208630144,3.25351839,202.3,202.29,42.23345199]
[1757208630641,0.03,202.3,202.29,42.93345199]
[1757208630838,0.03,202.3,202.29,47.87685008]
[1757208631136,0.03,202.3,202.29,75.8549427]
[1757208631938,0.03,202.3,202.29,75.85375147]
[1757208635443,0.03,202.3,202.29,72.20149071]
[1757208635746,0.03,202.3,202.29,75.8527308]
[1757208635929,0.03,202.3,202.29,75.9727308]
[1757208640049,0.03,202.3,202.29,71.02933271]
[1757208640749,0.03,202.3,202.29,75.9727308]
[1757208641147,0.03,202.3,202.29,71.02933271]
[1757208641337,0.03,202.3,202.29,70.34933271]
[1757208641538,0.03,202.3,202.29,31.74933271]
[1757208641864,0.03,202.3,202.29,75.9127308]
[1757208642562,0.03,202.3,202.29,70.96933271]
[1757208642770,0.03,202.3,202.29,68.31124009]
[1757208643047,0.03,202.3,202.29,42.31124009]
[1757208645625,0.03,202.3,202.29,47.25463818]
[1757208646847,0.03,202.3,202.29,42.31124009]
[1757208647052,0.72,202.3,202.29,42.31124009]
[1757208647448,0.03,202.3,202.29,42.31124009]
[1757208649858,0.03,202.3,202.29,3.77124009]
[1757208650358,0.74,202.3,202.29,42.25124009]
[1757208651055,0.03,202.33,202.29,47.85463818]
[1757208651358,0.71,202.32,202.3,42.33124009]
[1757208651531,0.71,202.32,202.31,3.65124009]
[1757208651735,0.03,202.33,202.31,4.31124009]
[1757208651932,0.03,202.33,202.32,43.03124009]
[1757208652543,0.03,202.33,202.32,45.56475848]
[1757208652852,0.03,202.33,202.32,50.50742356]
[1757208655670,0.03,202.33,202.32,49.84308364]
[1757208655851,0.03,202.33,202.32,44.90041856]
[1757208656173,13.59559401,202.42,202.32,44.90041856]
[1757208656174,2.53351839,202.41,202.32,54.73525793]
[1757208656338,0.2,202.51,202.32,54.73525793]
[1757208656339,0.71,202.44,202.36,39.59559401]
[1757208656640,0.71,202.44,202.4,26.0]
[1757208656841,3.24351839,202.43,202.41,43.14690017]
[1757208657162,4.93923325,202.47,202.42,3.64690017]
[1757208657351,2.53351839,202.44,202.43,3.64690017]
[1757208657532,3.24351839,202.44,202.43,3.64690017]
[1757208657951,8.18325362,202.44,202.43,3.64690017]
[1757208658150,5.64973523,202.44,202.43,3.64690017]
[1757208658368,8.18325362,202.44,202.43,3.64690017]
[1757208660541,21.77884763,202.44,202.43,3.64690017]
[1757208660861,14.83202729,202.46,202.43,3.64690017]
[1757208660862,19.77151317,202.46,202.43,3.64690017]
[1757208661061,3.24351839,202.44,202.4,39.14]
[1757208661261,0.71,202.43,202.41,3.63646675]
[1757208661569,0.71,202.46,202.42,43.81646675]
[1757208661739,0.71,202.46,202.43,3.63646675]
[1757208661939,0.71,202.46,202.44,3.63646675]
[1757208662156,0.71,202.46,202.45,3.63646675]
[1757208662661,3.24351839,202.46,202.45,3.63646675]
[1757208662865,8.18276564,202.46,202.45,3.63646675]
[1757208664169,8.18276564,202.46,202.33,0.66]
[1757208664170,13.59559401,202.43,202.33,0.66]
[1757208664460,2.53351839,202.37,202.35,34.72]
[1757208664653,3.24351839,202.36,202.35,34.72]
[1757208665245,3.24351839,202.36,202.32,44.45217429]
[1757208665439,3.24351839,202.35,202.32,39.56]
[1757208667078,3.24351839,202.35,202.32,39.52]
[1757208667785,3.24351839,202.35,202.3,14.25559401]
[1757208667982,2.53351839,202.32,202.3,13.59559401]
[1757208668144,3.24351839,202.32,202.3,39.5]
[1757208668349,2.53351839,202.33,202.3,39.5]
[1757208668657,2.53351839,202.33,202.29,0.12]
[1757208668860,2.53351839,202.33,202.3,39.52]
[1757208669254,3.24351839,202.33,202.3,39.52]
[1757208669856,2.53351839,202.32,202.3,39.64]
[1757208671067,2.53351839,202.32,202.3,40.3]
[1757208671967,3.24351839,202.32,202.3,39.64]
[1757208672862,2.53351839,202.32,202.3,39.64]
[1757208673761,2.53351839,202.31,202.3,39.64]
[1757208673958,2.53351839,202.31,202.3,0.12]
[1757208676054,2.53351839,202.31,202.3,3.76047401]
[1757208676683,2.53351839,202.31,202.3,0.12]
[1757208676863,2.53351839,202.31,202.3,3.76043116]
[1757208678283,132.3,202.33,202.3,3.76043116]
[1757208678573,0.71,202.32,202.31,3.64043116]
[1757208679783,3.24351839,202.32,202.31,3.64043116]
[1757208684558,2.53351839,202.32,202.31,3.64043116]
[1757208685383,137.94245458,202.33,202.31,3.64043116]
[1757208685568,137.94245458,202.33,202.3,0.12]
[1757208685569,2.53351839,202.32,202.3,0.12]
[1757208685887,133.0,202.33,202.31,3.6400425]
[1757208686101,133.0,202.33,202.3,0.12]
[1757208686102,2.53351839,202.32,202.3,0.12]
[1757208686398,2.53351839,202.31,202.3,0.8]
[1757208686690,2.53351839,202.31,202.3,3.76003213]
[1757208687383,133.0,202.33,202.3,3.76003213]
[1757208687686,0.7,202.32,202.31,3.64003213]
[1757208688592,4.65874536,202.32,202.31,3.64003213]
[1757208691097,13.59559401,202.37,202.31,3.64003213]
[1757208691098,0.7,202.42,202.34,26.0]
[1757208691396,3.95874536,202.41,202.35,43.50003213]
[1757208691591,4.65874536,202.42,202.36,4.32003213]
[1757208691788,3.95874536,202.41,202.37,4.32003213]
[1757208691992,3.95874536,202.41,202.38,43.64003213]
[1757208692300,3.95874536,202.41,202.39,3.63570185]
[1757208692499,3.95874536,202.41,202.4,3.63570185]
[1757208694092,0.7,202.43,202.4,3.63570185]
[1757208694293,3.95874536,202.41,202.38,40.0]
[1757208694590,3.95874536,202.41,202.39,4.31496341]
[1757208694792,3.95874536,202.41,202.4,3.63496341]
[1757208699191,4.65874536,202.41,202.4,3.63496341]
[1757208699409,9.59921272,202.41,202.4,3.63433571]
[1757208702597,23.19480673,202.41,202.4,3.63433571]
[1757208702800,27.15355209,202.41,202.4,3.63433571]
[1757208703205,23.19480673,202.41,202.4,3.63433571]
[1757208703915,27.15355209,202.41,202.4,3.63433571]
[1757208704104,39.50472051,202.41,202.31,0.68]
[1757208704291,3.95874536,202.32,202.31,0.68]
[1757208704692,3.95874536,202.33,202.31,0.68]
[1757208704992,3.95874536,202.32,202.31,0.68]
[1757208708493,5.64197612,202.35,202.31,0.8]
[1757208708716,3.95874536,202.33,202.31,0.8]
[1757208708916,3.95874536,202.33,202.32,0.68]
[1757208710798,3.95874536,202.33,202.31,0.12]
[1757208711000,3.95874536,202.33,202.31,0.78]
[1757208711422,5.64208003,202.35,202.31,0.78]
[1757208711628,3.95874536,202.33,202.31,0.78]
[1757208715098,3.95874536,202.33,202.32,0.66]
[1757208715323,3.95874536,202.33,202.31,0.12]
[1757208715506,3.95874536,202.33,202.31,0.78]
[1757208716301,3.95874536,202.33,202.32,3.64367106]
[1757208717630,3.95874536,202.33,202.32,3.64368091]
[1757208719715,132.3,202.34,202.32,3.64368091]
[1757208719920,132.3,202.34,202.33,3.64368091]
[1757208720120,133.02,202.34,202.33,3.64368091]
[1757208721026,136.97874536,202.34,202.33,3.64368091]
[1757208721320,132.3,202.34,202.33,4.30368091]
[1757208721514,132.3,202.34,202.33,9.2461017]
[1757208721706,20.52635415,202.44,202.33,9.2461017]
[1757208721908,3.95874536,202.41,202.34,43.30368091]
[1757208722119,3.95874536,202.41,202.35,4.30368091]
[1757208722309,3.95874536,202.41,202.36,9.24536899]
[1757208722514,3.95874536,202.41,202.37,4.30368091]
[1757208722717,3.95874536,202.41,202.38,4.30368091]
[1757208722914,3.95874536,202.41,202.39,3.64368091]
[1757208723113,3.95874536,202.41,202.4,3.64368091]
[1757208723617,3.95874536,202.41,202.4,3.64058884]
[1757208727525,0.03,202.44,202.43,3.63738652]
[1757208727819,0.03,202.44,202.43,4.29738652]
[1757208728202,0.03,202.44,202.43,3.63738652]
[1757208730416,3.98874536,202.44,202.43,3.63738652]
[1757208732027,4.70874536,202.44,202.43,3.63738652]
[1757208733634,3.98874536,202.44,202.43,3.63738652]
[1757208733831,0.03,202.44,202.43,3.63738652]
[1757208734134,0.03,202.44,202.43,9.23736577]
[1757208736608,0.03,202.44,202.43,4.29738652]
[1757208738136,0.03,202.44,202.43,4.29247842]
[1757208738718,0.03,202.44,202.43,9.23245767]
[1757208746145,0.03,202.44,202.43,3.63247842]
[1757208746346,3.98874536,202.44,202.43,42.41247842]
[1757208746741,0.03,202.44,202.43,43.09247842]
[1757208747134,0.03,202.44,202.43,42.41247842]
[1757208749050,0.03,202.44,202.43,42.39247842]
[1757208751457,0.03,202.44,202.43,3.63247842]
[1757208751755,3.2298317,202.44,202.43,68.37247842]